Workbook

Sheet ICP
A1: ICP | E1: Canone Unico | I1: Confronto
A2: Esposizione Annuale | E2: Esposizioni Annuali
A3: Descrizioni | B3: Tariffa | E3: Descrizione | F3: Tariffa | G3: Coefficiente | I3: 30xCoefficiente
A4: MEZZO PUBBL. OPACO ZONA 1 =< 1 MQ | B4: 11.36 | E4: MEZZO PUBBL. OPACO ZONA 1 =< 1 MQ | F4: 11.36 | G4: 0.379 | I4: =30*G4 -> 11.37
A5: MEZZO PUBBL. OPACO ZONA 1 >1 E =< 5,5 MQ | B5: 13.63 | E5: MEZZO PUBBL. OPACO ZONA 1 >1 E =< 5,5 MQ | F5: 13.63 | G5: 0.4544 | I5: =30*G5 -> 13.632
A6: MEZZO PUBBL. OPACO ZONA 1 > 5,5 E =< 8,5 MQ | B6: 20.45 | E6: MEZZO PUBBL. OPACO ZONA 1 > 5,5 E =< 8,5 MQ | F6: 20.45 | G6: 0.6817 | I6: =30*G6 -> 20.451
A7: MEZZO PUBBL. OPACO ZONA 1 > 8,5 MQ | B7: 27.27 | E7: MEZZO PUBBL. OPACO ZONA 1 > 8,5 MQ | F7: 27.27 | G7: 0.909 | I7: =30*G7 -> 27.27
A8: MEZZO PUBBL. LUM. ZONA 1 =< 1 MQ | B8: 22.72 | E8: MEZZO PUBBL. LUM. ZONA 1 =< 1 MQ | F8: 22.72 | G8: 0.7574 | I8: 22.722
A9: MEZZO PUBBL. LUM. ZONA 1 >1 E =< 5,5 MQ | B9: 27.27 | E9: MEZZO PUBBL. LUM. ZONA 1 >1 E =< 5,5 MQ | F9: 27.27 | G9: 0.909 | I9: 27.27
A10: MEZZO PUBBL. LUM. ZONA 1 > 5,5 E =< 8,5 MQ | B10: 34.09 | E10: MEZZO PUBBL. LUM. ZONA 1 > 5,5 E =< 8,5 MQ | F10: 34.09 | G10: 1.136 | I10: 34.08
A11: MEZZO PUBBL. LUM. ZONA 1 > 8,5 MQ | B11: 40.9 | E11: MEZZO PUBBL. LUM. ZONA 1 > 8,5 MQ | F11: 40.9 | G11: 1.3635 | I11: 40.905
A12: PANNELLO LUM. ZONA 1 =< 1 MQ | B12: 33.05 | E12: PANNELLO LUM. ZONA 1 =< 1 MQ | F12: 33.05 | G12: 1.102 | I12: 33.06
A13: PANNELLO LUM. ZONA 1 > 1 MQ | B13: 39.66 | E13: PANNELLO LUM. ZONA 1 > 1 MQ | F13: 39.66 | G13: 1.322 | I13: 39.66
C14: Anno/10
A15: Esposizioni 1 mese | E15: Esposizioni Giornaliere | I15: Confronto
A16: Descrizioni | B16: Tariffa | C16: Tariffa al Giorno | E16: Descrizione | F16: Tariffa | G16: Coefficiente | I16: 0,60xCoeff/3,6
A17: MEZZO PUBBL. OPACO ZONA 1 =< 1 MQ | B17: 1.14 | C17: =B17*10/365 -> 0.03123287671 | E17: MEZZO PUBBL. OPACO ZONA 1 =< 1 MQ | F17: 1.14 | G17: 0.1873972603 | I17: =0.6*G17/3.6 -> 0.03123287671
A18: MEZZO PUBBL. OPACO ZONA 1 > 1 MQ E =< 5,5 MQ | B18: 1.36 | C18: =B18*10/365 -> 0.03726027397 | E18: MEZZO PUBBL. OPACO ZONA 1 > 1 MQ E =< 5,5 MQ | F18: 1.36 | G18: 0.2235616438 | I18: =0.6*G18/3.6 -> 0.03726027397
A19: MEZZO PUBBL. OPACO ZONA 1 > 5,5 MQ E =< 8,5 MQ | B19: 2.05 | C19: 0.05616438356 | E19: MEZZO PUBBL. OPACO ZONA 1 > 5,5 MQ E =< 8,5 MQ | F19: 2.05 | G19: 0.3369863014 | I19: 0.05616438356
A20: MEZZO PUBBL. OPACO ZONA 1 > 8,5 MQ | B20: 2.73 | C20: 0.07479452055 | E20: MEZZO PUBBL. OPACO ZONA 1 > 8,5 MQ | F20: 2.73 | G20: 0.4487671233 | I20: 0.07479452055
A21: MEZZO PUBBL. LUM. ZONA 1 =< 1 MQ | B21: 2.28 | C21: 0.06246575342 | E21: MEZZO PUBBL. LUM. ZONA 1 =< 1 MQ | F21: 2.28 | G21: 0.3747945205 | I21: 0.06246575342
A22: MEZZO PUBBL. LUM. ZONA 1 > 1 MQ E =< 5,5 MQ | B22: 2.73 | C22: 0.07479452055 | E22: MEZZO PUBBL. LUM. ZONA 1 > 1 MQ E =< 5,5 MQ | F22: 2.73 | G22: 0.4487671233 | I22: 0.07479452055
A23: MEZZO PUBBL. LUM. ZONA 1 > 5,5 MQ E =< 8,5 MQ | B23: 3.41 | C23: 0.09342465753 | E23: MEZZO PUBBL. LUM. ZONA 1 > 5,5 MQ E =< 8,5 MQ | F23: 3.41 | G23: 0.5605479452 | I23: 0.09342465753
A24: MEZZO PUBBL. LUM. ZONA 1 > 8,5 MQ | B24: 4.09 | C24: 0.1120547945 | E24: MEZZO PUBBL. LUM. ZONA 1 > 8,5 MQ | F24: 4.09 | G24: 0.6723287671 | I24: 0.1120547945
A25: DISTRIBUZIONE VOLANTINI ZONA 1 | B25: 3.873 | C25: 0.106109589 | E25: DISTRIBUZIONE VOLANTINI ZONA 1 | F25: 0.106109589 | G25: =F25*3.6/0.6 -> 0.6366575342 | I25: =G25*0.6/3.6 -> 0.106109589
A26: STRISCIONI ZONA 1 (MIN 15GG) | B26: 5.809 | C26: 0.1591506849 | E26: STRISCIONI ZONA 1 (MIN 15GG) | F26: 0.1591506849 | G26: =F26*3.6/0.6 -> 0.9549041096 | I26: =G26*0.6/3.6 -> 0.1591506849
A27: PANNELLO LUM. ZONA 1 =< 1 MQ | B27: 3.31 | C27: 0.09068493151 | E27: PANNELLO LUM. ZONA 1 =< 1 MQ | F27: 0.09068493151 | G27: =F27*3.6/0.6 -> 0.544109589 | I27: 0.09068493151
A28: PANNELLO LUM. ZONA 1 > 1 MQ | B28: 3.97 | C28: 0.1087671233 | E28: PANNELLO LUM. ZONA 1 > 1 MQ | F28: 0.1087671233 | G28: =F28*3.6/0.6 -> 0.6526027397 | I28: 0.1087671233
A30: Pubbliche affissioni | E30: Pubbliche affissioni | I30: Confronto
A31: Descrizione | B31: Tariffa primi 10 giorni (a foglio) | C31: Tariffa giornaliera | E31: Descrizione | F31: Tariffa | G31: Coefficiente | I31: 0,60xCoef
A32: AFFISSIONI >70X100 | B32: 1.24 | C32: =B32/10 -> 0.124 | E32: AFFISSIONI ZONA 1 MANIF. > MQ 1 | F32: 0.124 | G32: 0.206 | I32: =0.6*G32 -> 0.1236
A33: AFFISSIONI MANIF. 70X100 | B33: 1.03 | C33: =B33/10 -> 0.103 | E33: AFFISSIONI ZONA 1 MANIF. 70X100 | F33: 0.103 | G33: 0.172 | I33: =0.6*G33 -> 0.1032
A34: MANIF. > MQ 1 - formati 8/12 fg | B34: +50% | E34: PER PERIODI SUCCESSIVI | F34: 0.031 | G34: 0.051 | I34: =0.6*G34 -> 0.0306
A35: formati +12 fg | B35: +100% | F35: 0.037 | G35: 0.061 | I35: =0.6*G35 -> 0.0366
A36: DIRITTO URGENZA | B36: 30 | E36: 3 | F36: 25.82
A37: URGENZA= Articolo 45, comma 10 del Regolamento Canone Unico

Sheet TOSAP
A1: TOSAP | F1: Canone Unico
A2: PERMANENTE | F2: PERMANENTE
A3: Descrizione | B3: Tariffa Cat 1 | C3: Tariffa Cat 2 | D3: Categoria | F3: Descrizione | G3: Coef 1 Cat | H3: Tariffa 1 Cat | I3: Coef 2 Cat | J3: Tariffa 2 Cat
A4: SUOLO GENERICO | B4: 66.39 | C4: 46.49 | D4: 1° categoria | F4: SUOLO GENERICO | G4: =H4/30 -> 2.213 | H4: =B4 -> 66.39 | I4: =J4/30 -> 1.549666667 | J4: =C4 -> 46.49
A5: SPAZI RISERVATI A CARICO SCARICO MERCI, PARCHEGGI PRIVATI | B5: 66.39 | C5: 46.49 | D5: 1° categoria | F5: SPAZI RISERVATI A CARICO SCARICO MERCI, PARCHEGGI PRIVATI | G5: =H5/30 -> 2.213 | H5: =B5 -> 66.39 | I5: =J5/30 -> 1.549666667 | J5: =C5 -> 46.49
A6: CHIOSCHI/EDICOLE | B6: 66.39 | C6: 46.49 | D6: 1° categoria | F6: CHIOSCHI/EDICOLE | G6: 2.213 | H6: 66.39 | I6: 1.549666667 | J6: 46.49
A7: TENDE | B7: 12.54 | C7: 12.54 | D7: 1° categoria | F7: TENDE | G7: 0.418 | H7: 12.54 | I7: 0.418 | J7: 12.54
A8: MEZZI PUBBLICITARI | B8: 66.39 | C8: 46.49 | F8: MEZZI PUBBLICITARI | G8: 2.213 | H8: 66.39 | I8: 1.549666667 | J8: 46.49
A9: ESPOSIZION MERCE ESTERNO NEGOZIO SU SUPPORTI O ALLA RINFUSA | B9: 66.39 | C9: 46.49 | F9: ESPOSIZION MERCE ESTERNO NEGOZIO SU SUPPORTI O ALLA RINFUSA | G9: 2.213 | H9: 66.39 | I9: 1.549666667 | J9: 46.49
A10: ARREDO URBANO(CESTINI, PENISLINE, OROLOGI, FIORIERE, QUADRI TURISTICI, DISTRIBUTORI AUTOMATICI, BLANCE, TRANSENNE) | B10: 66.39 | C10: 46.49 | F10: ARREDO URBANO(CESTINI, PENISLINE, OROLOGI, FIORIERE, QUADRI TURISTICI, DISTRIBUTORI AUTOMATICI, BLANCE, TRANSENNE) | G10: 2.213 | H10: 66.39 | I10: 0.9916666667 | J10: =C11 -> 29.75
A11: PONTEGGI, PER LAVORI EDILI | B11: =53.13*0.8 -> 42.504 | C11: 29.75 | F11: PONTEGGI, PER LAVORI EDILI | G11: 1.4168 | H11: 42.504 | I11: 0.9916666667 | J11: 29.75
A12: BOCCHE DI LUPO/FERITOIE | D12: esenti | F12: BOCCHE DI LUPO/FERITOIE | G12: 0 | H12: 0 | J12: 0
A13: PASSI CARRAI | D13: esenti | F13: PASSI CARRAI
A14: PASSI CARRAI A RASO CON DIVIETO DI SOSTA | D14: esenti | F14: PASSI CARRAI A RASO CON DIVIETO DI SOSTA
A15: PASSI CARRAI NON UTILIZZATI / INUTILIZZABILI | D15: 1° categoria - sono esentati solo se viene rimosso il manufatto | F15: PASSI CARRAI NON UTILIZZATI / INUTILIZZABILI | J15: 1° categoria - sono esentati solo se viene rimosso il manufatto
A16: PASSI CARRAI DISTRIBUTORI | D16: 1° categoria | F16: PASSI CARRAI DISTRIBUTORI
A17: PASSI CARRAI COSTRUITI DAL COMUNE | D17: esenti | F17: PASSI CARRAI COSTRUITI DAL COMUNE
A18: DISTRIBUTORI DI TABACCHI (AD UNITA') | F18: DISTRIBUTORI DI TABACCHI (AD UNITA')
A19: DISTRIBUTORI DI CARBURANTI | F19: DISTRIBUTORI DI CARBURANTI
A20: SERBATOI DI CARBURANTE < 3.000 LT | F20: SERBATOI DI CARBURANTE < 3.000 LT
A21: SERBATOI DI CARBURANTE > 3.000 LT | F21: SERBATOI DI CARBURANTE > 3.000 LT
A22: ANTENNE TELEFONIA MOBILE | F22: ANTENNE TELEFONIA MOBILE
A23: TARI ALIMENTARI | B23: 0 | C23: 0 | D23: banchi di mercato generi alimentari tariffa annuale | F23: TARI ALIMENTARI
A24: TARI NON ALIMENTARI | B24: 0 | C24: 0 | D24: banchi di mercato beni durevoli tariffa annuale | F24: TARI NON ALIMENTARI
A26: TEMPORANEE | F26: TEMPORANEE
A27: Descrizione | B27: Tariffa Cat 1 | C27: Tariffa Cat 2 | D27: Categoria | F27: Descrizione | G27: Coef 1 Cat | H27: Tariffa 1 Cat | I27: Coef 2 Cat | J27: Tariffa 2 Cat
A28: Occupazione ordinaria del suolo; | B28: 0.93 | C28: 0.64 | D28: 1° categoria | F28: Occupazione ordinaria del suolo; | G28: =H28/0.6 -> 1.55 | H28: =B28 -> 0.93 | I28: =J28/0.6 -> 1.066666667 | J28: =C28 -> 0.64
A29: Occupazione ordinaria del soprassuolo; | B29: =0.7*0.64 -> 0.448 | C29: 0.322 | D29: 1° categoria | F29: Occupazione ordinaria del soprassuolo; | G29: =H29/0.6 -> 0.7466666667 | H29: =B29 -> 0.448 | I29: =J29/0.6 -> 0.5366666667 | J29: =C29 -> 0.322
A30: Banchi di vendita e simili, con concessione per posto fisso, sia nelle aree mercatali che in altri luoghi pubblici( escluse le tende sporgenti); | B30: =0.4*0.36 -> 0.144 | C30: 0.104 | D30: 1° categoria | F30: Banchi di vendita e simili, con concessione per posto fisso, sia nelle aree mercatali che in altri luoghi pubblici( escluse le tende sporgenti); | G30: 0.24 | H30: 0.144 | I30: 0.1733333333 | J30: 0.104
A31: Banchi di vendita e simili non titolari di concessione per posto fisso(spuntisti); | B31: =0.8*0.75 -> 0.6 | C31: 0.408 | D31: 1° categoria | F31: Banchi di vendita e simili non titolari di concessione per posto fisso(spuntisti); | G31: 1 | H31: 0.6 | I31: 0.68 | J31: 0.408
A32: Banchi di vendita e simili in occasione di fiere e festeggiamenti; | B32: =0.8*0.75 -> 0.6 | C32: 0.408 | D32: 1° categoria | F32: Banchi di vendita e simili in occasione di fiere e festeggiamenti; | G32: 1 | H32: 0.6 | I32: 0.68 | J32: 0.408
A33: Esposizione di merce all’esterno di negozi su appositi espositori o alla rinfusa e simili; | B33: 0.93 | C33: 0.64 | D33: 1° categoria | F33: Esposizione di merce all’esterno di negozi su appositi espositori o alla rinfusa e simili; | G33: 1.55 | H33: 0.93 | I33: 1.066666667 | J33: 0.64
A34: Ponteggi, attrezzature e materiali necessari all’effettuazione di lavori edili, scavi, reinterri( comprese le occupazioni con i mezzi operativi) e simili; | B34: =0.6*0.66 -> 0.396 | C34: 0.3 | D34: 1° categoria | F34: Ponteggi, attrezzature e materiali necessari all’effettuazione di lavori edili, scavi, reinterri( comprese le occupazioni con i mezzi operativi) e simili; | G34: 0.66 | H34: 0.396 | I34: 0.5 | J34: 0.3
A35: Spettacoli viaggianti e circensi, manifestazioni politiche, culturali, religiose e sportive | B35: =0.3*0.28 -> 0.084 | C35: 0.063 | D35: 1° categoria | F35: Spettacoli viaggianti e circensi, manifestazioni politiche, culturali, religiose e sportive | G35: 0.14 | H35: 0.084 | I35: 0.105 | J35: 0.063
A36: Striscioni pubblicitari esposti trasversalmente alle vie e piazze pubbliche; | B36: =0.8*0.75 -> 0.6 | C36: 0.408 | D36: 1° categoria | F36: Striscioni pubblicitari esposti trasversalmente alle vie e piazze pubbliche; | G36: 1 | H36: 0.6 | I36: 0.68 | J36: 0.408
A37: Dehors, ombrelloni, tavolini e sedie all’esterno di pubblici esercizi e simili; | B37: =0.4*0.36 -> 0.144 | C37: 0.104 | D37: 1° categoria | F37: Dehors, ombrelloni, tavolini e sedie all’esterno di pubblici esercizi e simili; | G37: 0.24 | H37: 0.144 | I37: 0.1733333333 | J37: 0.104
A38: Mezzi pubblicitari di qualunque tipo infissi al suolo; | B38: 0.93 | C38: 0.64 | D38: 1° categoria | F38: Mezzi pubblicitari di qualunque tipo infissi al suolo; | G38: 1.55 | H38: 0.93 | I38: 1.066666667 | J38: 0.64
A39: Tende parasole sporgenti da bancarelle e simili; | B39: =0.2*0.18 -> 0.036 | C39: 0.026 | D39: 1° categoria | F39: Tende parasole sporgenti da bancarelle e simili; | G39: 0.06 | H39: 0.036 | I39: 0.04333333333 | J39: 0.026
A40: Insegne pubblicitarie a bandiera e mezzi pubblicitari aventi dimensioni volumetriche non infissi al suolo; | B40: =0.7*0.64 -> 0.448 | C40: 0.322 | D40: 1° categoria | F40: Insegne pubblicitarie a bandiera e mezzi pubblicitari aventi dimensioni volumetriche non infissi al suolo; | G40: 0.7466666667 | H40: 0.448 | I40: 0.5366666667 | J40: 0.322

Sheet MERCATI
A1: TOSAP | E1: Tariffa | F1: Tariffa Mercato Spuntisti | G1: Coefficiente Mercato Fisso | H1: Tarig
A2: MERCATO - GIOVEDI' | B2: 0.144 | E2: 0.221 | F2: 0.6 | G2: 0 | H2: 0
A3: TARIG ALIMENTARI | B3: -
A4: TARIG NON ALIMENTARI | B4: -
H10: Confronto
H11: TOSAP | I11: CU
G13: Giovedì | H13: 0.144 | I13: =E2 -> 0.221
H15: riduzione 35% | I15: =I13-(I13*35/100) -> 0.14365
